Cogmind - Beta 14 *** ADVENTURER MODE // 2024.09.03 @ 00:17:38 Player: Bert Result: Self-destructed Performance ------------- Evolutions (4) 2000 Regions Visited (5) 1000 Robots Destroyed (68) 340 Value Destroyed (2011) 2011 Prototype IDs (3) 60 Alien Tech Used (0) 0 Bonus (314) 314 TOTAL SCORE: 5725 Bonus ------- Pacifist 200 High Alert Combat Kills 114 Cogmind --------- Core Integrity 424/850 Matter 258/300 Energy 100/100 System Corruption 10% Temperature Cool (0) Movement Core (50) Location -6/Factory Parts ------- > --- POWER (2) -------- (None) > --- PROPULSION (3) --- (None) > --- UTILITY (7) ------ Machine Analyzer Visual Processing Unit Improved Signal Interpreter Terrain Scan Processor Hacking Suite > --- WEAPON (3) ------- (None) > --- INVENTORY (5) ---- Advanced Sensor Array Advanced Signal Interpreter Melee Analysis Suite Core Analyzer Remote Datajack Peak State ------------ > --- POWER ------------ Deuterium Engine Light Deuterium Engine > --- PROPULSION ------- Carbon-fiber Leg Carbon-fiber Leg Titanium Leg > --- UTILITY ---------- Small Storage Unit Advanced Weight Redist. System Machine Analyzer Visual Processing Unit Improved Signal Interpreter Improved Terrain Scanner Terrain Scan Processor > --- WEAPON ----------- Remote Datajack Heavy Hammer > --- INVENTORY -------- Aluminum Leg Improved Aluminum Leg Advanced Signal Interpreter Remote Datajack Flail Maul [Rating: 39] Favorites ----------- Power Deuterium Engine Engine Deuterium Engine Propulsion Carbon-fiber Leg Leg Carbon-fiber Leg Wheel Wheel Utility Small Storage Unit Device Improved Terrain Scanner Storage Small Storage Unit Processor Machine Analyzer Hackware Hacking Suite Protection Light Armor Plating Weapon Maul Energy Gun Medium Laser Launcher Grenade Launcher Special Weapon Remote Datajack Impact Weapon Maul Special Melee Weapon Datajack Build | -11 -10 -9 -8 -7 -6 ------- Run | Yrd Mat Mat Mat Fac Fac Slots Evolved 8 | . . 2 2 2 2 Power 1 | . . . . . 1 Propulsion 1 | . . 1 . . . Utility 5 | . . 1 1 2 1 Weapon 1 | . . . 1 . . Parts Attached 53 | 6 . 15 14 3 15 Power 6 | 1 . 2 1 . 2 Engine 6 | 1 . 2 1 . 2 Core . | . . . . . . Reactor . | . . . . . . Propulsion 20 | 2 . 5 5 . 8 Treads . | . . . . . . Leg 18 | . . 5 5 . 8 Wheel 2 | 2 . . . . . Hover . | . . . . . . Flight . | . . . . . . Utility 14 | 1 . 5 3 2 3 Device 4 | . . . 1 2 1 Storage 1 | 1 . . . . . Processor 4 | . . 1 2 . 1 Hackware 1 | . . . . . 1 Protection 4 | . . 4 . . . Artifact . | . . . . . . Weapon 13 | 2 . 3 5 1 2 Energy Gun 3 | 2 . 1 . . . Energy Cannon . | . . . . . . Ballistic Gun . | . . . . . . Ballistic Cannon . | . . . . . . Launcher 1 | . . 1 . . . Special Weapon 2 | . . . 2 . . Impact Weapon 5 | . . 1 1 1 2 Slashing Weapon . | . . . . . . Piercing Weapon . | . . . . . . Special Melee Weapon 2 | . . . 2 . . Unidentified Prototypes . | . . . . . . Corrupted Parts 4 | . . 1 2 . 1 System Corruption 20 | . . 7 7 . 6 Parts Lost 17 | . . 2 4 . 11 Power 3 | . . . 1 . 2 Propulsion 9 | . . 2 1 . 6 Utility 3 | . . . 1 . 2 Weapon 2 | . . . 1 . 1 Highest Loss Streak 7 | . . 1 2 . 7 To Critical Strikes . | . . . . . . Average Slot Usage (%) 85 | . 85 83 93 90 79 Engine 9 | . 14 11 8 7 10 Leg 21 | . . 20 26 23 18 Wheel 1 | . 28 3 . . . Device 3 | . . . 1 9 9 Storage 8 | . 14 11 9 7 5 Processor 16 | . . 9 18 23 24 Protection 4 | . . 8 3 . . Energy Gun 3 | . 28 9 . . . Launcher 2 | . . 1 5 . . Special Weapon 2 | . . . 4 15 3 Impact Weapon 8 | . . 8 15 3 2 Peak Build Rating 39 | 6 6 18 30 36 39 Average Rating 22 | 4 6 12 23 33 33 On Entrance 15 | . 6 6 18 30 31 Naked Turns . | . . . . . . Heaviest Build 29 | 14 14 27 29 22 26 Greatest Support 56 | 20 20 36 56 56 56 Greatest Overweight (x) 2 | . . 1 . . 2 Average Overweight (x) . | . . . . . . Largest Inventory Capacity 8 | 8 8 8 8 8 8 Average Capacity 7 | 5 8 8 8 8 7 Most Carried 8 | 5 5 8 8 8 8 Average Carried 6 | 2 4 6 7 7 6 Final Capacity 8 | 8 8 8 8 8 5 Final Carried 8 | 4 4 8 8 8 5 Class Distribution -------------------- 87% | Mutant 8% | Hacker-Assassin 3% | Assassin Dominant Class ---------------- Mutant | -10/Materials Mutant | -9/Materials Mutant | -8/Materials Mutant | -7/Factory Mutant | -6/Factory Resources | -11 -10 -9 -8 -7 -6 ----------- Run | Yrd Mat Mat Mat Fac Fac Matter Collected 702 | 216 . 143 208 . 135 Remotely . | . . . . . . Salvage Created 2310 | . . 870 1054 . 386 Parts 75 | . . 32 28 . 15 Haulers Intercepted 2 | . . 2 . . . Recyclers Shooed 1 | . . . . . 1 Parts Field Recycled . | . . . . . . Retrieved Matter . | . . . . . . Parts Self-Destructed . | . . . . . . Prevented . | . . . . . . Kills | -11 -10 -9 -8 -7 -6 ------- Run | Yrd Mat Mat Mat Fac Fac Combat Hostiles Destroyed 52 | . . 18 23 . 11 Melee 20 | . . 3 12 . 5 Guns 10 | . . 10 . . . Classes Destroyed 11 | . . 7 1 . 3 Worker 1 | . . . . . 1 Hauler 2 | . . 2 . . . Recycler 3 | . . 1 2 . . Operator 4 | . . 1 3 . . Watcher 6 | . . 3 3 . . Swarmer 20 | . . 7 7 . 6 Grunt 17 | . . 4 11 . 2 Duelist 1 | . . . . . 1 Sentry 11 | . . 7 4 . . Hunter 1 | . . . 1 . . Programmer 2 | . . . . . 2 Best Kill Streak 7 | . . 4 5 . 7 Combat Bots Only 6 | . . 4 5 . 6 Max Kills in Single Turn 1 | . . 1 1 . 1 Gunslinging . | . . . . . . Exploded . | . . . . . . Melee 1 | . . 1 1 . 1 Uniques/NPCs Destroyed . | . . . . . . Combat | -11 -10 -9 -8 -7 -6 -------- Run | Yrd Mat Mat Mat Fac Fac Hostile Shots Fired 323 | . . 68 125 . 130 Missed 116 | . . 19 42 . 55 Damage Taken 2387 | . . 451 871 . 1065 Core 644 | . . 110 108 . 426 Absorbed by Shields . | . . . . . . Ignored by Resistances 695 | . . 133 258 . 304 Core Remaining (%) 90 | 100 100 72 80 100 . Volleys Fired 29 | . . 26 1 . 2 Largest 2 | . . 2 1 . 1 Hottest 100 | . . 100 5 . 5 Shots Fired 55 | . . 52 1 . 2 Gun 52 | . . 52 . . . Cannon . | . . . . . . Launcher . | . . . . . . Special 3 | . . . 1 . 2 Kinetic . | . . . . . . Thermal 52 | . . 52 . . . Explosive . | . . . . . . Electromagnetic . | . . . . . . Robot Hit Streak 21 | . . 21 8 . 1 Robot Miss Streak 2 | . . 2 . . 1 Penetration Max . | . . . . . . Secondary Targets . | . . . . . . Shots Hit Robots 167 | . . 59 78 . 30 Core Hits 38 | . . 21 11 1 5 Critical Kills 7 | . . 2 4 . 1 Critical Parts Destroyed 33 | . . 7 18 . 8 Critical Strikes 46 | . . 15 22 . 9 Burn 6 | . . 6 . . . Smash 40 | . . 9 22 . 9 Melee Attacks 141 | . . 22 88 . 31 Impact 128 | . . 22 75 . 31 Slashing . | . . . . . . Piercing . | . . . . . . Sneak Attacks 21 | . . 4 16 . 1 Combat Hostiles . | . . . . . . Follow-up Attacks 4 | . . . 4 . . Damage Inflicted 5152 | . . 1340 2696 3 1113 Guns 502 | . . 502 . . . Cannons . | . . . . . . Explosions . | . . . . . . Melee 4644 | . . 838 2696 . 1110 Ramming 6 | . . . . 3 3 Kinetic . | . . . . . . Thermal 502 | . . 502 . . . Explosive . | . . . . . . Electromagnetic . | . . . . . . Impact 4644 | . . 838 2696 . 1110 Slashing . | . . . . . . Piercing . | . . . . . . Highest Corruption 10 | . . 7 7 . 10 Average Corruption 3 | . . 7 4 . 1 Corruption Purged . | . . . . . . Corruption Blocked . | . . . . . . Effects 24 | . . 3 18 . 3 Message Errors 6 | . . . 5 . 1 Matter Fused 9 | . . 2 6 . 1 Heat Flow Errors 2 | . . . 2 . . Energy Discharges 2 | . . 1 1 . . Data Loss (minor) 2 | . . . 2 . . Data Loss (major) 2 | . . . 1 . 1 Alerts 1 | . . . 1 . . Overload Shots . | . . . . . . Overflow Damage 2073 | . . 507 1214 . 352 Projectiles 30 | . . . 30 . . Explosions . | . . . . . . Melee 2043 | . . 507 1184 . 352 Knockbacks 21 | . . 2 15 . 4 Impact 19 | . . 2 13 . 4 Kinetic . | . . . . . . Secondary 2 | . . . 2 . . Self-Inflicted Damage . | . . . . . . Shots . | . . . . . . Rammed . | . . . . . . Targets Rammed 3 | . . . . 1 2 Kicked 3 | . . . . 1 2 Crushed . | . . . . . . Highest Temperature 372 | . . 372 189 . . Average Temperature 113 | . . 116 81 . . Received Heat Transfer 825 | . . 168 477 . 180 Effects 1 | . . 1 . . . Energy Bleed 1 | . . 1 . . . Siege Activations . | . . . . . . Robots Corrupted 31 | . . 9 16 . 6 Combat Hostiles 22 | . . 5 11 . 6 Parts Fried 41 | . . 15 21 . 5 Impact Corruptions 78 | . . 18 45 . 15 Robots Melted . | . . . . . . Combat Hostiles . | . . . . . . Parts Melted 5 | . . 5 . . . Heat Transferred 1924 | . . 1924 . . . Parts Sabotaged . | . . . . . . Parts Stolen . | . . . . . . Parts Stripped . | . . . . . . Power Chain Reactions . | . . . . . . Alert | -11 -10 -9 -8 -7 -6 ------- Run | Yrd Mat Mat Mat Fac Fac Peak Influence 573 | . 21 353 573 217 255 Initial 202 | . . 7 54 202 91 Average 193 | . 4 145 374 202 68 Maximum Alert Level 2 | . . 1 2 1 1 Low Security (%) 61 | 100 100 72 21 . 94 Level 1 23 | . . 27 29 100 5 Level 2 15 | . . . 48 . . Level 3 . | . . . . . . Level 4 . | . . . . . . Level 5 . | . . . . . . High Security . | . . . . . . Max Security . | . . . . . . Squads Dispatched 9 | . . 2 3 . 4 Investigation 2 | . . 1 . . 1 Extermination 2 | . . . . . 2 Reinforcement 5 | . . 1 3 . 1 Assault . | . . . . . . Garrison . | . . . . . . Intercept . | . . . . . . Searches Triggered . | . . . . . . Construction Impeded . | . . . . . . Haulers Reinforced . | . . . . . . Active Scanning Responses . | . . . . . . Cargo Convoy Interrupts 1 | . . . . . 1 Stealth | -11 -10 -9 -8 -7 -6 --------- Run | Yrd Mat Mat Mat Fac Fac Distress Signals 8 | . . 2 4 1 1 Communications Jammed . | . . . . . . Distress Signals . | . . . . . . Times Spotted 103 | . 2 24 48 1 28 Peak Tracking Total 12 | . 2 6 6 2 12 Tactical Retreats 8 | . . . 6 . 2 Traps | -11 -10 -9 -8 -7 -6 ------- Run | Yrd Mat Mat Mat Fac Fac Traps Triggered 5 | . . 1 . . 4 Indirectly . | . . . . . . Trap Hack Attempts . | . . . . . . Triggered . | . . . . . . Disarmed 4 | . 4 . . . . Reprogrammed . | . . . . . . Reused . | . . . . . . Traps Extracted . | . . . . . . Installed . | . . . . . . Triggered . | . . . . . . Machines | -11 -10 -9 -8 -7 -6 ---------- Run | Yrd Mat Mat Mat Fac Fac Machines Disabled 1 | . . . 1 . . Max in Single Turn 1 | . . . 1 . . Machines Repaired . | . . . . . . Machines Dismantled 1 | . . . 1 . . Machines Sabotaged . | . . . . . . Overloaded Fab Kills . | . . . . . . Hacking | -11 -10 -9 -8 -7 -6 --------- Run | Yrd Mat Mat Mat Fac Fac Machines Accessed 12 | . 3 4 3 . 2 Terminals 10 | . 3 3 2 . 2 Fabricators . | . . . . . . Repair Stations . | . . . . . . Recycling Units 1 | . . 1 . . . Scanalyzers 1 | . . . 1 . . Garrison Access . | . . . . . . Total Hacks 34 | . 11 10 9 . 4 Successful 20 | . 6 8 6 . . Failed 14 | . 5 2 3 . 4 Catastrophic . | . . . . . . Database Lockouts . | . . . . . . Manual 1 | . . 1 . . . Terminals 30 | . 11 8 7 . 4 Fabricators . | . . . . . . Repair Stations . | . . . . . . Recycling Units 2 | . . 2 . . . Scanalyzers 2 | . . . 2 . . Garrison Access . | . . . . . . Terminal Hacks 16 | . 6 6 4 . . Prototype ID Bank 2 | . 1 1 . . . Level Access Points 1 | . . 1 . . . Branch Access Points 1 | . 1 . . . . Emergency Access Points 2 | . . 1 1 . . Alert Level 3 | . . 2 1 . . Locate Traps 1 | . 1 . . . . Disarm Traps 1 | . 1 . . . . Dispatch Records 1 | . . . 1 . . Surveillance Status 1 | . 1 . . . . Patrol Status 1 | . 1 . . . . Registered Prototypes 1 | . . . 1 . . Zone Layout 1 | . . 1 . . . Fabricator Hacks . | . . . . . . Repair Station Hacks . | . . . . . . Recycling Unit Hacks 2 | . . 2 . . . Report Inventory 1 | . . 1 . . . Retrieve Components 1 | . . 1 . . . Scanalyzer 2 | . . . 2 . . Insert Component 1 | . . . 1 . . Analyze 1 | . . . 1 . . Garrison Access Hacks . | . . . . . . Unauthorized Hacks . | . . . . . . Terminals . | . . . . . . Fabricators . | . . . . . . Repair Stations . | . . . . . . Recycling Units . | . . . . . . Scanalyzers . | . . . . . . Garrison Access . | . . . . . . Data Cores Recovered . | . . . . . . Used . | . . . . . . Hacking Detections 7 | . 1 2 2 . 2 Full Trace Events 1 | . . . . . 1 Feedback Events . | . . . . . . Feedback Blocked . | . . . . . . Robot Schematics Acquired . | . . . . . . Robots Built . | . . . . . . Authchips . | . . . . . . Time . | . . . . . . Total Robot Build Rating . | . . . . . . Part Schematics Acquired 1 | . . . 1 . . Parts Built . | . . . . . . Authchips . | . . . . . . Time . | . . . . . . Total Part Build Rating . | . . . . . . Parts Repaired . | . . . . . . Time . | . . . . . . Parts Recycled . | . . . . . . Recycled Matter . | . . . . . . Retrieved Matter . | . . . . . . Retrieved Components 9 | . . 9 . . . Parts Scanalyzed 1 | . . . 1 . . Part Schematics Acquired 1 | . . . 1 . . Parts Damaged 1 | . . . 1 . . Bothacking | -11 -10 -9 -8 -7 -6 ------------ Run | Yrd Mat Mat Mat Fac Fac Used RIF Installer . | . . . . . . Robots Hacked 7 | . . . 6 . 1 Non-combat 6 | . . . 5 . 1 Combat 1 | . . . 1 . . Robot Hacks Applied 10 | . . . 9 . 1 parse_system 3 | . . . 2 . 1 no_distress 4 | . . . 4 . . find_recycling 2 | . . . 2 . . check_alert 1 | . . . 1 . . Relay Couplers Released . | . . . . . . Fabnet Peak Effective % . | . . . . . . Robots Rewired . | . . . . . . Allies Hacked . | . . . . . . Hacks Repelled . | . . . . . . Allies | -11 -10 -9 -8 -7 -6 -------- Run | Yrd Mat Mat Mat Fac Fac Total Allies . | . . . . . . Largest Group . | . . . . . . Highest-Rated Group . | . . . . . . Highest-Rated Ally . | . . . . . . Total Orders . | . . . . . . Ally Attacks . | . . . . . . Total Damage . | . . . . . . Kills . | . . . . . . Allies Corrupted . | . . . . . . Allies Melted . | . . . . . . Intel | -11 -10 -9 -8 -7 -6 ------- Run | Yrd Mat Mat Mat Fac Fac Robot Analysis Total . | . . . . . . Derelict Logs Recovered . | . . . . . . Drone Launches . | . . . . . . Drone Recoveries . | . . . . . . Exploration | -11 -10 -9 -8 -7 -6 ------------- Run | Yrd Mat Mat Mat Fac Fac Turns Passed 3711 | 70 58 1279 1171 117 1016 Spaces Moved 1699 | 56 67 505 514 89 468 Core 8 | 7 . . . . 1 Treads . | . . . . . . Legs 1453 | . . 383 514 89 467 Wheels 238 | 49 67 122 . . . Hover . | . . . . . . Flight . | . . . . . . Fastest Speed 50 | 50 80 80 120 123 120 Average Speed 118 | 76 80 117 122 123 123 Slowest Speed 190 | 80 80 190 123 123 150 Overloaded Moves . | . . . . . . Propulsion Burnouts . | . . . . . . Robots Hopped . | . . . . . . Cave-ins Triggered . | . . . . . . Exploration Rate (%) 18 | 4 15 41 33 3 12 Regions Visited 5 Branch Regions . Pre-discovered Areas . | . . . . . . Known Exits Taken 3 | . . 1 1 1 . Unknown Exits Taken 2 | 1 1 . . . . Scrap Searched . | . . . . . . Spaces Dug . | . . . . . . Terrain Destroyed . | . . . . . . Melee . | . . . . . . Projectile . | . . . . . . AOE . | . . . . . . Terrain Rammed . | . . . . . . Walls Destroyed . | . . . . . . Machines Disabled . | . . . . . . Actions | -11 -10 -9 -8 -7 -6 --------- Run | Yrd Mat Mat Mat Fac Fac Total 3092 | 83 71 1099 881 98 860 Wait 1057 | 12 3 495 240 . 307 Move 1694 | 55 66 504 513 88 468 Hop . | . . . . . . Pick Up 69 | 10 1 22 11 2 23 Fast Attach . | . . . . . . Attach 41 | 6 . 8 9 3 15 Detach 6 | . . 2 2 2 . Swap 12 | . . 7 5 . . Drop 33 | . 1 13 5 2 12 Fire 29 | . . 26 1 . 2 Melee 129 | . . 22 76 . 31 Ram . | . . . . . . Kick 3 | . . . . 1 2 Crush . | . . . . . . Escape Stasis . | . . . . . . Rewire . | . . . . . . Trap . | . . . . . . Miscellaneous 19 | . . . 19 . . Route ------- -11/Scrapyard -10/Materials (discovered 2 exits: *Mat / Min) -9/Materials (discovered 3 exits: *Mat x3) -8/Materials -7/Factory -6/Factory (discovered 1 exit: *Low) History --------- Turn | Location | Event 30 | -11/Scrapyard | Discovered new exit (range 16) 71 | -11/Scrapyard | Entered Materials 107 | -10/Materials | Discovered new exit (range 16) 118 | -10/Materials | Identified exit to Mines 129 | -10/Materials | Entered another Materials area 129 | -9/Materials | Evolved 2 slots: Propulsion x1, Utility x1 308 | -9/Materials | Build established: Mutant 1002 | -9/Materials | Identified exit to Materials 1408 | -9/Materials | Entered another Materials area 1408 | -8/Materials | Evolved 2 slots: Utility x1, Weapon x1 2556 | -8/Materials | Discovered new exit (range 14) 2575 | -8/Materials | Identified exit to Factory 2579 | -8/Materials | Entered Factory 2579 | -7/Factory | Evolved 2 slots: Utility x2 2679 | -7/Factory | Discovered new exit (range 5) 2695 | -7/Factory | Identified exit to Factory 2696 | -7/Factory | Entered another Factory area 2696 | -6/Factory | Evolved 2 slots: Power x1, Utility x1 2907 | -6/Factory | Discovered new exit (range 15) 2923 | -6/Factory | Identified exit to Lower Caves 3606 | -6/Factory | Lost 4 parts (2p2n) 3664 | -6/Factory | Build established: Hacker-Assassin 3699 | -6/Factory | Cargo convoy interrupted 3709 | -6/Factory | System corruption reached 10% 3712 | -6/Factory | Self-destructed Last Messages --------------- 03700_ Nuclear Reactor explodes. 03700_ K-01 Serf destroyed. 03700_ Carbon-fiber Leg destroyed. 03700_ U-05 Engineer destroyed. 03700_ K-01 Serf destroyed. 03700_ W-25 Informer destroyed. 03702_ The unstable cave ceiling collapses. 03702_ U-05 Engineer lays Concrete. 03702_ Slug penetrates A-27 Freighter. 03703_ U-05 Engineer lays Concrete. 03705_ Penetrated by Slug. 03705_ Imp. Terrain Scanner destroyed. 03705_ U-05 Engineer lays Concrete. 03708_ Penetrated by Slug. 03708_ Hvy. Hammer destroyed. 03708_ Sml. Storage Unit destroyed. 03709_ U-05 Engineer lays Concrete. 03711_ U-05 Engineer builds a Wall. 03712_ The unstable cave ceiling collapses. 03712_ Penetrated by Slug. Map ----- +----------------------------------------------------+ | ???"T"????? ?????????????????????????????????????? | | ??????????? ?????????????????????????????????????? | | ?????? ???? ? ? ?????????????????????????????????? | | ??????????# ? ???????????????????????????????????? | | ?# ? ? ? ##?##?? ?????????????????????????????? | | ???? ??? ?? ###??? ??????????????????????????????? | | ?# ? ?? ? ? ?###? ?? "???????????????????????????? | | ?? ???? ? #????? ??????????????????????????????? | | ??###+??### #?#??????????????????????????????????? | | #### ?##?# #?#??????"?????????????????????"""???? | | #### ##### #??##??? ?""???????????????????"""???? | | #?## ##### #####""" ??"???????????????????"""???? | | ? ? ###?#?"" "?""????????????????????????? | | ##### #####? ? ?? ??????? ???????????????? | | ##### #####??############# ???????????????? | | ##T # ? ????????????????? | | #####+######?#?#% ? ?????????????? | | # %[ %% ####?#ix """ """ """????????????? | | + " [ ###?## ph """ """ """????????????? | | # "T ###### x """ """ """????????????? | | # " = + [% % i A ????????? | | ##### # !!! ###### """ " "????????????? | | ??### # ! %!!! ##### =% """ "T" ???????????? | | ##### # ! # """ """ k ?????? | | # / # %bb u #?????????? | | ################# %[b@/ #?????????? | | ?#?####?###?# ### #?????????? | | ########??#?# ### # # #?????????? | | ############# # "## # ###??? #?????????? | | ################# +? ???????? #?????????? | | ######?#####??#########?###?##???????????????????? | | ##########?##########??#?????????????????????????? | | ################?##??????????????????????????????? | | ####?##########?#?????#??????????????????????????? | | #################??????????????"""???????????????? | | ##########?###?#???????????????"""???????????????? | | ############?###??#????????????"""???????????????? | | #############?#??????????????????????????????????? | | #################????????????????????????????????? | | ######?#??###?###????????????????????????????????? | | ###########?#####????????????????????????????????? | | #####?#####??#?##????????????????????????????????? | | #??##?####?##?#????????????????????????????????? | | " #############?#????????????????????????????????? | | " ####?###?###?#?????????????????????????????????? | | " #####?##?#?####????????????????????????????????? | | ##?#?#####?##?#????????????????????????????????? | | ###############?#????????????????????????????????? | | #########?####?#?????????????????????????????????? | | ##?##?#?##?#?#???????????????????????????????????? | +----------------------------------------------------+ Best States ------------- Heat Dissipation 37 Energy Generation 23 Energy Capacity 315 Matter Stores 300 Matter Capacity 300 Sight Range 18 Terrain Scan Range 16 Terrain Scan Density 85 Additional Mass Support 9 Armor Coverage 225 Resistance: KI 20 Resistance: TH 20 Resistance: EX 20 Resistance: EM 20 Resistance: I 20 Resistance: S 20 Resistance: P 20 Evasion (%) 55 Offensive Hacking 20 Item Schematics ----------------- Deuterium Engine | -8/Materials | Scanalyzed Robot Schematics ------------------ None Fabricated ------------ Nothing Alien Tech Used ----------------- None Achievements -------------- None Challenges ------------ None Game ------ Seed GammaColdSegregator Manual? 0 Play Time 00:30:35 Cumulative 34.1 hours Start 2024.09.02 @ 23:47:06 End 2024.09.03 @ 00:17:38 Sessions 1 Manual Loads 0 Difficulty Adventurer Special Mode None Game No. 74 Rogue 0 Adventurer 74 Explorer 0 Win Type - Total 0 Types 0/0/0/0/0/0/0/0/0 Lore% 22 Gallery% 36 Achievement% 28 Wizard Run 0 Options --------- Layout 2 ASCII 0 Keyboard 1 Movement Numpad Keybinds 0 Fullscreen 1 Font 24/Smallcaps Map View 50x44 Zoom Use 0% Tactical HUD 1 Map Filters NONE Filters NONE Steam 1 RUN: 2b671ff4-bdee-4b64-985b-58da1f0f00b8